bitfinex/quotes_SOLUSD_20241102
["timestamp","ask_amount","ask_price","bid_price","bid_amount"]
[1730509417417,75.9866,167.04,167.0,5.51957198]
[1730509417642,5.9866,167.04,167.0,5.51957198]
[1730509419041,5.9862,167.05,167.0,5.51957198]
[1730509419726,70.0,167.04,167.0,5.51957198]
[1730509419941,75.51957198,167.04,166.99,5.988]
[1730509420527,81.50637198,167.04,166.99,5.988]
[1730509423240,81.50637198,167.04,166.99,5.51957198]
[1730509423832,5.51957198,167.05,167.0,5.51957198]
[1730509424037,174.2,167.06,167.02,5.51957198]
[1730509425025,249.71957198,167.06,167.01,20.48807198]
[1730509425237,81.50567198,167.06,167.01,20.956]
[1730509426051,255.70567198,167.06,167.01,20.956]
[1730509427629,81.50567198,167.06,167.01,5.51957198]
[1730509427829,255.70567198,167.06,167.01,5.51957198]
[1730509428136,250.1861,167.06,167.01,5.51957198]
[1730509428336,180.1861,167.06,167.01,5.51957198]
[1730509428530,174.2,167.06,167.03,5.51957198]
[1730509429237,174.2,167.06,167.02,5.51957198]
[1730509429645,174.2,167.07,167.03,5.9869]
[1730509432244,5.9858,167.06,167.02,20.48747198]
[1730509432429,250.1858,167.06,167.02,14.9679]
[1730509435034,5.51957198,167.05,166.99,26.47867198]
[1730509435246,255.70537198,167.06,167.0,5.51957198]
[1730509435448,81.50537198,167.06,167.0,5.51957198]
[1730509436347,81.50537198,167.06,167.0,11.50737198]
[1730509436555,70.0,167.04,167.0,11.50737198]
[1730509437058,81.50537198,167.06,167.0,11.50737198]
[1730509437351,43.776884,167.05,167.0,5.51957198]
[1730509438346,5.9865,167.04,167.0,5.51957198]
[1730509439445,75.9865,167.04,167.0,5.51957198]
[1730509441643,5.9865,167.04,167.0,5.51957198]
[1730509442570,5.9861,167.06,167.03,5.51957198]
[1730509442854,5.9861,167.06,166.97,50.9071]
[1730509442855,75.9861,167.06,166.97,20.9617]
[1730509443053,5.51957198,167.05,166.99,5.51957198]
[1730509444162,11.50597198,167.05,167.0,5.988]
[1730509444948,5.9864,167.05,167.0,11.50757198]
[1730509446364,11.50597198,167.05,166.99,20.48997198]
[1730509447067,0.1,167.1,166.99,20.48997198]
[1730509447068,75.51957198,167.1,167.04,5.51957198]
[1730509448061,75.51957198,167.1,167.05,5.51957198]
[1730509448448,81.50397198,167.1,167.05,5.51957198]
[1730509448647,81.50397198,167.1,167.05,5.9861]
[1730509450049,5.51957198,167.09,167.05,5.9861]
[1730509450249,81.50397198,167.1,167.05,5.9861]
[1730509454062,5.51957198,167.09,167.05,5.9861]
[1730509457682,81.50467198,167.08,167.02,5.51957198]
[1730509458350,70.0,167.06,167.01,20.9567]
[1730509458678,75.51957198,167.06,167.01,26.47627198]
[1730509461368,81.50547198,167.06,167.01,26.47627198]
[1730509461976,70.0,167.06,167.01,26.47627198]
[1730509463457,81.50567198,167.06,167.01,26.47627198]
[1730509464171,70.0,167.04,167.01,14.9691]
[1730509464347,75.51957198,167.04,167.0,5.9879]
[1730509464549,75.51957198,167.04,166.99,11.50787198]
[1730509465369,75.51957198,167.04,166.99,26.47877198]
[1730509465769,70.0,167.02,166.98,5.9886]
[1730509466355,23.776884,167.06,167.01,5.51957198]
[1730509466574,23.776884,167.06,167.03,5.51957198]
[1730509466959,23.776884,167.06,167.02,5.51957198]
[1730509467560,23.776884,167.06,167.02,11.50677198]
[1730509467753,70.0,167.05,167.02,11.50677198]
[1730509468081,70.0,167.05,167.02,5.9872]
[1730509468950,70.0,167.05,167.01,20.48857198]
[1730509469182,70.0,167.05,167.01,26.47617198]
[1730509469356,23.776884,167.06,167.01,26.47617198]
[1730509469562,75.51957198,167.07,167.02,5.51957198]
[1730509469759,70.0,167.07,167.03,5.51957198]
[1730509469978,23.776884,167.08,167.03,5.51957198]
[1730509471168,23.776884,167.08,167.04,5.9865]
[1730509472266,70.0,167.07,167.04,5.9865]
[1730509474170,29.29645598,167.08,167.04,5.9865]
[1730509476886,70.0,167.09,167.04,26.47247198]
[1730509477055,70.0,167.09,167.05,5.51957198]
[1730509477569,70.0,167.09,167.04,26.47247198]
[1730509477763,5.51957198,167.11,167.06,5.51957198]
[1730509478090,5.51957198,167.11,167.04,20.9529]
[1730509478091,81.50327198,167.12,167.07,5.51957198]
[1730509478270,5.51957198,167.11,167.06,5.51957198]
[1730509478970,5.51957198,167.11,167.07,20.9492]
[1730509481271,75.51957198,167.12,167.07,26.46877198]
[1730509481479,29.29645598,167.13,167.07,26.46877198]
[1730509482790,29.29645598,167.13,167.08,5.51957198]
[1730509484276,70.0,167.12,167.09,5.9847]
[1730509485761,75.51957198,167.12,167.09,5.9847]
[1730509487080,75.51957198,167.12,167.08,20.9479]
[1730509488998,5.51957198,167.11,167.08,20.9479]
[1730509489174,5.51957198,167.11,167.08,14.9628]
[1730509490871,75.51957198,167.12,167.08,14.9628]
[1730509491285,23.776884,167.13,167.08,20.48237198]
[1730509493302,23.776884,167.13,167.08,26.46747198]
[1730509494378,92.16947198,167.14,167.09,5.51957198]
[1730509494572,75.51957198,167.14,167.09,5.51957198]
[1730509495001,75.51957198,167.12,167.08,20.9479]
[1730509496190,70.0,167.12,167.08,26.46747198]
[1730509496379,23.776884,167.13,167.09,5.51957198]
[1730509497274,23.776884,167.13,167.1,5.9844]
[1730509498590,70.0,167.12,167.1,5.9844]
[1730509499989,29.29645598,167.13,167.1,5.9844]
[1730509500495,70.0,167.12,167.1,5.9844]
[1730509501285,70.0,167.12,167.08,5.51957198]
[1730509503303,75.51957198,167.12,167.09,20.9466]
[1730509504201,70.0,167.12,167.08,5.51957198]
[1730509504398,29.29645598,167.13,167.08,5.51957198]
[1730509504579,70.0,167.12,167.08,5.51957198]
[1730509506400,70.0,167.12,167.09,20.9466]
[1730509514586,70.0,167.12,167.09,14.9619]
[1730509515294,70.0,167.1,167.07,5.9854]
[1730509515497,75.51957198,167.1,167.06,14.964]
[1730509516510,75.51957198,167.1,167.06,20.9498]
[1730509518207,70.0,167.08,167.05,5.9858]
[1730509519513,70.0,167.08,167.05,11.50537198]
[1730509521408,70.0,167.08,167.05,5.9858]
[1730509528403,70.0,167.08,167.05,5.51957198]
[1730509529523,70.0,167.08,167.05,11.50567198]
[1730509530310,75.984,167.12,167.07,5.51957198]
[1730509531207,81.50357198,167.12,167.07,5.51957198]
[1730509533456,81.50357198,167.12,167.08,5.9851]
[1730509537329,81.50357198,167.12,167.08,5.51957198]
[1730509537706,20.97157198,167.13,167.08,5.51957198]
[1730509538014,81.50277198,167.14,167.08,5.51957198]
[1730509539227,81.50277198,167.14,167.09,5.9847]
[1730509539713,75.51957198,167.12,167.08,20.947]
[1730509550133,70.0,167.12,167.09,5.51957198]
[1730509551245,70.0,167.12,167.09,11.50417198]
[1730509552135,70.0,167.12,167.08,20.48157198]
[1730509553039,75.51957198,167.12,167.08,14.962]
[1730509553739,75.51957198,167.12,167.08,20.9471]
[1730509554038,70.0,167.12,167.08,26.46667198]
[1730509554338,81.50257198,167.14,167.08,26.46667198]
[1730509554535,75.51957198,167.14,167.09,5.51957198]
[1730509554713,75.51957198,167.14,167.08,20.9471]
[1730509554714,70.0,167.14,167.1,5.51957198]
[1730509556036,70.0,167.14,167.11,5.984]
[1730509560542,5.51957198,167.15,167.11,20.9442]
[1730509561436,75.51957198,167.16,167.11,26.46377198]
[1730509561744,81.50177198,167.16,167.11,26.46377198]
[1730509564440,5.51957198,167.15,167.1,5.51957198]
[1730509564637,75.9822,167.16,167.09,5.51957198]
[1730509564638,75.51957198,167.14,167.09,5.51957198]
[1730509564822,5.51957198,167.13,167.08,5.51957198]
[1730509565837,11.50287198,167.13,167.09,5.9847]
[1730509568746,75.51957198,167.12,167.08,5.985]
[1730509570240,81.50327198,167.12,167.08,5.985]
[1730509575859,75.9837,167.12,167.08,5.51957198]
[1730509576840,75.9837,167.12,167.08,11.50447198]
[1730509579652,5.9833,167.13,167.08,11.50447198]
[1730509581037,75.9839,167.12,167.08,5.9849]
[1730509583243,75.9839,167.12,167.08,5.51957198]
[1730509584860,75.9839,167.12,167.08,11.50447198]
[1730509585754,23.776884,167.13,167.09,5.51957198]
[1730509586550,5.9826,167.15,167.11,5.51957198]
[1730509588062,75.51957198,167.16,167.12,5.9837]
[1730509588242,70.0,167.16,167.12,5.9837]
[1730509588440,70.0,167.16,167.12,20.943]
[1730509589364,75.9824,167.16,167.12,20.943]
[1730509589859,5.51957198,167.15,167.12,14.9593]
[1730509591549,11.50217198,167.15,167.12,14.9593]
[1730509592570,5.9826,167.15,167.11,5.51957198]
[1730509593964,5.9826,167.15,167.11,11.50347198]
[1730509594350,5.9826,167.15,167.11,5.9839]
[1730509600660,11.50217198,167.15,167.11,5.9839]
[1730509602764,5.9826,167.15,167.11,5.9839]
[1730509604541,11.50217198,167.15,167.11,5.9839]
[1730509617479,5.9826,167.15,167.11,5.9839]
[1730509621478,11.50217198,167.15,167.11,5.9839]
[1730509623358,5.9826,167.15,167.11,5.9839]
[1730509628963,5.9826,167.15,167.1,26.46477198]
[1730509629879,5.9826,167.15,167.11,5.51957198]
[1730509630264,70.0,167.18,167.14,5.51957198]
[1730509630576,5.9815,167.19,167.16,5.51957198]
[1730509631365,5.9815,167.19,167.15,5.51957198]
[1730509631564,75.9816,167.18,167.15,5.51957198]
[1730509633163,5.9812,167.19,167.15,5.51957198]
[1730509637686,5.9812,167.19,167.14,5.51957198]
[1730509638902,5.9812,167.19,167.14,11.50247198]
[1730509639368,5.9812,167.19,167.15,5.51957198]
[1730509648299,5.9812,167.19,167.16,5.51957198]
[1730509650305,5.9812,167.19,167.15,5.51957198]
[1730509652202,5.9812,167.19,167.16,5.51957198]
[1730509652807,5.9812,167.19,167.17,5.51957198]
[1730509653606,75.9809,167.2,167.18,5.51957198]
[1730509654105,5.9809,167.2,167.18,5.51957198]
[1730509654595,70.0,167.22,167.18,5.51957198]
[1730509654799,5.9807,167.21,167.19,5.51957198]
[1730509657115,70.0,167.25,167.2,5.51957198]
[1730509657403,70.0,167.25,167.23,5.51957198]
[1730509658182,75.9793,167.25,167.23,5.51957198]
[1730509660717,75.9793,167.25,167.23,5.48344824]
[1730509663418,5.9775,167.3,167.24,20.46807198]
[1730509663712,5.9761,167.34,167.29,5.51957198]
[1730509664002,5.9761,167.34,167.33,5.51957198]
[1730509664205,70.0,167.33,167.31,5.51957198]
[1730509666287,70.0,167.33,167.32,5.51957198]
[1730509669902,70.0,167.39,167.32,5.51957198]
[1730509670205,70.0,167.41,167.38,5.51957198]
[1730509670389,70.0,167.41,167.4,5.51957198]
[1730509670816,70.0,167.41,167.39,5.51957198]
[1730509674112,75.9719,167.45,167.4,5.51957198]
[1730509674290,0.6170903,167.46,167.44,5.51957198]
[1730509675113,0.6170903,167.46,167.43,5.51957198]
[1730509675308,12.10816228,167.46,167.4,5.51957198]
[1730509676003,12.10816228,167.46,167.41,5.51957198]
[1730509676516,70.0,167.43,167.41,5.51957198]
[1730509676697,70.0,167.43,167.4,5.51957198]
[1730509677899,75.9727,167.43,167.4,5.51957198]
[1730509678301,75.9727,167.43,167.39,20.45467198]
[1730509680207,5.9727,167.43,167.39,20.45467198]
[1730509680398,5.9727,167.43,167.4,5.51957198]
[1730509681117,99.29645598,167.45,167.39,20.9091]
[1730509681118,70.0,167.45,167.42,5.51957198]
[1730509681303,70.0,167.45,167.4,5.51957198]
[1730509682106,70.0,167.41,167.37,11.49427198]
[1730509682504,70.0,167.41,167.38,5.51957198]
[1730509682705,70.0,167.43,167.38,5.51957198]
[1730509682912,91.0757,167.45,167.41,5.51957198]
[1730509683119,70.0,167.45,167.41,5.51957198]
[1730509683295,70.0,167.45,167.37,20.9116]
[1730509683296,70.0,167.45,167.42,5.51957198]
[1730509683500,23.776884,167.45,167.42,5.51957198]
[1730509683905,0.6170903,167.46,167.42,5.51957198]
[1730509684104,0.6170903,167.46,167.43,5.9726]
[1730509684342,0.6170903,167.46,167.43,11.49217198]
[1730509684626,0.6170903,167.46,167.45,5.51957198]
[1730509684930,70.0,167.56,167.46,0.1]
[1730509685232,70.0,167.56,167.51,5.51957198]
[1730509686217,70.0,167.53,167.5,20.8952]
[1730509687223,70.0,167.53,167.5,14.9252]
[1730509687703,23.776884,167.55,167.51,5.51957198]
[1730509687904,81.48717198,167.57,167.51,5.51957198]
[1730509688206,70.0,167.55,167.51,11.48927198]
[1730509688812,70.0,167.55,167.51,5.9697]
[1730509689213,23.776884,167.56,167.51,11.48927198]
[1730509689513,70.0,167.57,167.54,5.51957198]
[1730509689715,3.24,167.59,167.54,5.51957198]
[1730509689920,3.24,167.59,167.49,0.1]
[1730509689921,70.0,167.59,167.53,21.9164]
[1730509690423,75.9662,167.61,167.55,5.51957198]
[1730509691201,75.9662,167.61,167.56,5.51957198]
[1730509691420,74.9662,167.61,167.56,5.51957198]
[1730509692124,80.48577198,167.61,167.55,26.40847198]
[1730509692320,4.9662,167.61,167.56,5.51957198]
[1730509692503,6.13666228,167.62,167.56,5.51957198]
[1730509692708,0.6170903,167.62,167.57,5.51957198]
[1730509692920,0.6170903,167.62,167.58,5.51957198]
[1730509693426,6.13666228,167.62,167.56,5.51957198]
[1730509693826,6.13666228,167.62,167.57,5.9676]
[1730509694318,6.13666228,167.62,167.56,5.51957198]
[1730509694319,5.51957198,167.59,167.55,20.8889]
[1730509694644,5.51957198,167.59,167.53,27.43597198]
[1730509694930,5.51957198,167.59,167.54,5.9686]
[1730509695303,5.51957198,167.59,167.54,11.48817198]
[1730509695606,11.48667198,167.59,167.55,50.88641014]
[1730509695924,5.51957198,167.58,167.53,33.40497198]
[1730509696125,11.48667198,167.59,167.53,33.40497198]
[1730509696718,5.51957198,167.58,167.53,6.2072]
[1730509698333,11.48717198,167.58,167.53,6.2072]
[1730509698843,5.51957198,167.56,167.52,14.9233]
[1730509700008,11.48757198,167.56,167.52,14.9233]
[1730509700409,11.48757198,167.56,167.51,5.51957198]
[1730509700631,5.51957198,167.53,167.49,14.9259]
[1730509700821,5.51957198,167.52,167.46,20.44837198]
[1730509701130,70.0,167.53,167.49,5.51957198]
[1730509701312,75.51957198,167.53,167.48,5.51957198]
[1730509701507,5.51957198,167.53,167.48,5.51957198]
[1730509701709,5.51957198,167.52,167.47,5.51957198]
[1730509701932,5.51957198,167.51,167.46,26.41987198]
[1730509702230,5.51957198,167.51,167.46,5.51957198]
[1730509702412,5.51957198,167.5,167.45,28.03217198]
[1730509702613,75.51957198,167.49,167.43,26.42307198]
[1730509703304,5.51957198,167.48,167.43,20.9035]
[1730509703804,11.49047198,167.48,167.43,20.45077198]
[1730509704308,5.51957198,167.49,167.44,5.51957198]
[1730509704725,11.49007198,167.49,167.44,5.51957198]
[1730509704920,11.49007198,167.49,167.43,20.45077198]
[1730509705653,5.51957198,167.48,167.43,20.45077198]
[1730509705833,5.51957198,167.45,167.41,22.5141]
[1730509706007,5.51957198,167.44,167.4,12.57751731]
[1730509706321,5.51957198,167.44,167.39,26.42777198]
[1730509707229,5.51957198,167.42,167.39,14.9345]
[1730509707731,5.51957198,167.41,167.39,14.9345]
[1730509709134,5.51957198,167.41,167.37,6.24257892]
[1730509709135,5.51957198,167.4,167.37,6.24257892]
[1730509709436,5.51957198,167.39,167.36,14.9376]
[1730509709617,5.51957198,167.39,167.36,20.9127]
[1730509711532,5.51957198,167.38,167.35,6.24391515]
[1730509711724,5.51957198,167.37,167.35,6.24391515]
[1730509712632,5.51957198,167.38,167.35,6.24391515]
[1730509712839,5.51957198,167.38,167.3,29.9853]
[1730509712840,5.51957198,167.36,167.3,5.51957198]
[1730509713036,5.51957198,167.35,167.3,5.51957198]
[1730509713524,5.51957198,167.35,167.3,3.01957198]
[1730509713926,5.51957198,167.34,167.31,5.9768]
[1730509714144,5.51957198,167.34,167.29,21.18786033]
[1730509714326,5.51957198,167.34,167.29,27.16516033]
[1730509716028,5.9755,167.35,167.29,27.16516033]
[1730509716233,5.51957198,167.33,167.29,27.16516033]
[1730509717018,5.51957198,167.34,167.29,32.68473231]
[1730509717224,5.51957198,167.36,167.31,5.51957198]
[1730509718723,5.51957198,167.35,167.3,5.51957198]
[1730509719837,5.51957198,167.35,167.3,11.49677198]
[1730509720424,81.49477198,167.36,167.3,11.49677198]
[1730509721121,5.51957198,167.35,167.3,5.9772]
[1730509721627,5.9755,167.35,167.3,5.9772]
[1730509724926,11.49507198,167.35,167.3,5.9772]
[1730509725332,5.51957198,167.34,167.3,5.9772]
[1730509726137,11.49547198,167.34,167.3,5.9772]
[1730509726336,11.49547198,167.34,167.29,21.18786033]
[1730509726539,5.51957198,167.3,167.29,6.24426033]
[1730509726725,5.51957198,167.3,167.26,20.925]
[1730509726927,5.51957198,167.3,167.26,27.17243929]
[1730509727128,5.51957198,167.29,167.26,6.24743929]
[1730509727328,11.49737198,167.29,167.26,6.24743929]
[1730509727654,11.49737198,167.29,167.24,5.9794]
[1730509727655,5.51957198,167.28,167.24,5.9794]
[1730509729537,11.49757198,167.28,167.24,5.9794]
[1730509730843,11.49727198,167.29,167.24,5.9794]
[1730509731068,5.51957198,167.3,167.25,5.51957198]
[1730509731951,5.51957198,167.3,167.24,26.44747198]
[1730509732942,5.51957198,167.29,167.24,20.9279]
[1730509733247,5.51957198,167.3,167.25,5.51957198]
[1730509733548,5.51957198,167.3,167.24,20.9279]
[1730509733549,5.51957198,167.29,167.24,26.44747198]
[1730509734252,11.49707198,167.3,167.25,5.51957198]
[1730509734446,14.9396,167.34,167.26,5.51957198]
[1730509734447,11.49657198,167.31,167.26,5.51957198]
[1730509735243,5.51957198,167.3,167.25,5.51957198]
[1730509735446,5.51957198,167.3,167.24,26.44747198]
[1730509735848,5.51957198,167.29,167.24,20.9279]
[1730509737143,5.51957198,167.29,167.24,26.44747198]
[1730509737448,5.51957198,167.28,167.23,11.76780629]
[1730509737652,5.51957198,167.26,167.23,6.24823431]
[1730509738048,5.51957198,167.27,167.23,6.24823431]
[1730509738451,5.51957198,167.26,167.23,6.24823431]
[1730509738639,5.51957198,167.27,167.23,6.24823431]
[1730509739039,11.49817198,167.27,167.23,6.24823431]
[1730509740260,5.9786,167.27,167.23,6.24823431]
[1730509740450,5.9786,167.27,167.22,11.49937198]
[1730509741261,11.49817198,167.27,167.22,11.49937198]
[1730509742336,11.49757198,167.28,167.22,11.49937198]
[1730509742659,11.49757198,167.28,167.22,26.44967198]
[1730509743361,5.51957198,167.27,167.22,20.9301]
[1730509743737,11.49797198,167.27,167.22,20.9301]
[1730509745043,5.51957198,167.26,167.22,14.9503]
[1730509746352,5.51957198,167.26,167.22,20.9304]
[1730509746555,5.51957198,167.25,167.22,20.9304]
[1730509746958,5.51957198,167.26,167.22,20.9304]
[1730509747148,5.51957198,167.25,167.22,14.9503]
[1730509747549,5.51957198,167.24,167.21,5.9802]
[1730509748159,5.51957198,167.24,167.2,5.9807]
[1730509748463,5.51957198,167.23,167.19,27.1832642]
[1730509748663,5.51957198,167.22,167.19,27.1832642]
[1730509749058,5.51957198,167.22,167.19,6.2497642]
[1730509749365,5.51957198,167.21,167.19,6.2497642]
[1730509750455,5.9808,167.2,167.19,6.2497642]
[1730509750653,5.51957198,167.2,167.19,6.2497642]
[1730509750952,11.50017198,167.21,167.19,6.2497642]
[1730509751463,11.50007198,167.21,167.19,6.2497642]
[1730509751767,11.49977198,167.22,167.19,6.2497642]
[1730509753673,5.51957198,167.25,167.19,11.76933618]
[1730509753851,5.51957198,167.26,167.21,5.51957198]
[1730509754169,81.49797198,167.27,167.22,5.51957198]
[1730509754357,81.49797198,167.27,167.22,11.49947198]
[1730509755364,75.9784,167.27,167.22,11.49947198]
[1730509755868,5.51957198,167.29,167.24,5.51957198]
[1730509756170,5.51957198,167.32,167.27,5.51957198]
[1730509756372,5.9767,167.32,167.27,5.51957198]
[1730509756960,81.49577198,167.33,167.28,5.51957198]
[1730509757475,81.49577198,167.33,167.22,6.2185]
[1730509757476,5.51957198,167.31,167.26,5.51957198]
[1730509757770,5.51957198,167.32,167.26,5.51957198]
[1730509757978,11.49627198,167.32,167.27,5.9783]
[1730509758270,11.49627198,167.32,167.27,11.49787198]
[1730509758454,14.56198179,167.32,167.27,14.56358179]
[1730509759176,5.9767,167.32,167.27,14.56358179]
[1730509759754,14.56198179,167.32,167.26,8.58528179]
[1730509760259,8.58528179,167.31,167.26,8.58528179]
[1730509760663,8.58528179,167.29,167.24,8.58528179]
[1730509761556,8.58528179,167.28,167.23,20.9291]
[1730509761755,14.56338179,167.28,167.23,20.9291]
[1730509761993,8.58528179,167.27,167.23,20.9291]
[1730509762274,8.58528179,167.26,167.21,12.22780816]
[1730509762464,8.58528179,167.25,167.21,12.22780816]
[1730509762658,8.58528179,167.24,167.2,20.9326]
[1730509762875,8.58528179,167.24,167.2,14.9518]
[1730509763164,8.58528179,167.23,167.19,5.9811]
[1730509763350,78.58528179,167.25,167.2,8.58528179]
[1730509763556,8.58528179,167.26,167.21,8.58528179]
[1730509764465,5.979,167.25,167.2,8.58528179]
[1730509765277,84.56428179,167.25,167.19,29.51948179]
[1730509765451,8.58528179,167.24,167.19,14.953]
[1730509765787,8.58528179,167.24,167.19,29.51948179]
[1730509766979,84.56428179,167.25,167.19,29.51948179]
[1730509767672,84.56428179,167.25,167.2,8.58528179]
[1730509769067,84.56428179,167.25,167.2,14.56588179]
[1730509769774,75.979,167.25,167.2,14.56588179]
[1730509769981,75.979,167.25,167.21,8.58528179]
[1730509770277,70.0,167.25,167.22,8.58528179]
[1730509770862,70.0,167.25,167.21,8.58528179]
[1730509771877,5.9787,167.26,167.21,14.56558179]
[1730509772491,14.56398179,167.26,167.21,14.56558179]
[1730509776374,14.56398179,167.26,167.2,8.58528179]
[1730509777569,8.58528179,167.25,167.2,8.58528179]
[1730509777772,8.58528179,167.25,167.2,14.56578179]
[1730509778485,5.49948649,167.25,167.2,11.47998649]
[1730509780274,5.9791,167.25,167.2,26.43208649]
[1730509780867,11.47818649,167.26,167.2,26.43208649]
[1730509781782,11.47818649,167.26,167.21,5.49948649]
[1730509781967,11.47818649,167.26,167.21,5.9803]
[1730509782972,11.47818649,167.26,167.2,20.45158649]
[1730509783664,5.9787,167.26,167.21,5.49948649]
[1730509784975,5.9787,167.26,167.21,11.47988649]
[1730509785503,14.9427,167.31,167.25,5.49948649]
[1730509785504,5.9781,167.28,167.25,5.49948649]
[1730509785792,70.0,167.31,167.25,5.49948649]
[1730509786095,81.47638649,167.31,167.26,5.49948649]
[1730509786270,81.47638649,167.31,167.21,50.8341]
[1730509786271,22.6238,167.32,167.28,5.49948649]
[1730509786467,5.9766,167.32,167.28,5.49948649]
[1730509786893,5.9766,167.32,167.27,5.49948649]
[1730509787090,5.9766,167.32,167.27,11.47758649]
[1730509788175,11.47608649,167.32,167.27,5.49948649]
[1730509790183,5.9766,167.32,167.27,5.49948649]
[1730509790992,81.47568649,167.33,167.28,5.49948649]
[1730509791173,75.9762,167.33,167.28,5.49948649]
[1730509792274,70.0,167.33,167.29,5.49948649]
[1730509792580,70.0,167.33,167.3,5.49948649]
[1730509792793,70.0,167.33,167.29,5.49948649]
[1730509792978,70.0,167.33,167.28,11.47728649]
[1730509793280,70.0,167.33,167.29,5.49948649]
[1730509793476,70.0,167.33,167.28,11.47728649]
[1730509793796,70.0,167.33,167.29,5.49948649]
[1730509794091,70.0,167.33,167.28,26.42228649]
[1730509796195,70.0,167.33,167.29,5.49948649]
[1730509796791,70.0,167.33,167.28,26.42228649]
[1730509797596,75.9762,167.33,167.28,26.42228649]
[1730509801698,81.47568649,167.33,167.28,26.42228649]
[1730509802606,75.9762,167.33,167.29,5.49948649]
[1730509802895,16.6472,167.36,167.31,5.49948649]
[1730509802896,70.0,167.32,167.31,5.49948649]
[1730509803205,70.0,167.32,167.25,29.8936]
[1730509803206,70.0,167.32,167.3,5.49948649]
[1730509804391,70.0,167.32,167.3,11.47668649]
[1730509805081,70.0,167.34,167.31,5.49948649]
[1730509805590,70.0,167.34,167.32,5.49948649]
[1730509806395,70.0,167.34,167.32,11.47598649]
[1730509807179,23.776884,167.35,167.32,11.47598649]
[1730509807897,70.0,167.34,167.32,11.47598649]
[1730509809478,70.0,167.34,167.32,5.9765]
[1730509810812,70.0,167.36,167.32,5.49948649]
[1730509812205,70.0,167.36,167.32,11.47568649]
[1730509813009,70.0,167.36,167.32,26.41708649]
[1730509813209,70.0,167.36,167.33,5.49948649]
[1730509813391,70.0,167.36,167.34,5.49948649]
[1730509813701,70.0,167.36,167.33,5.49948649]
[1730509814301,70.0,167.36,167.34,5.9758]
[1730509818698,70.0,167.36,167.34,5.49948649]
[1730509820001,70.0,167.36,167.34,11.47518649]
[1730509820213,70.0,167.38,167.34,11.47518649]
[1730509820509,70.0,167.38,167.35,5.49948649]
[1730509820705,70.0,167.38,167.34,26.41478649]
[1730509824014,70.0,167.38,167.35,5.49948649]
[1730509826121,70.0,167.38,167.35,11.47468649]
[1730509826502,70.0,167.38,167.35,5.9752]
[1730509826898,70.0,167.38,167.35,11.47468649]
[1730509827226,23.776884,167.39,167.35,26.41338649]
[1730509828906,70.0,167.37,167.35,20.9139]
[1730509830412,70.0,167.37,167.34,5.49948649]
[1730509831123,70.0,167.35,167.32,5.49948649]
[1730509831322,75.49948649,167.35,167.3,56.30628649]
[1730509833424,70.0,167.35,167.3,56.30628649]
[1730509834236,70.0,167.35,167.31,5.49948649]
[1730509837225,75.49948649,167.37,167.32,26.41738649]
[1730509837419,23.776884,167.36,167.33,5.49948649]
[1730509837930,70.0,167.35,167.32,20.9179]
[1730509839023,70.0,167.35,167.32,5.49948649]
[1730509839225,23.776884,167.36,167.32,5.49948649]
[1730509840725,70.0,167.35,167.32,5.49948649]
[1730509840931,70.0,167.35,167.31,5.49948649]
[1730509841141,70.0,167.35,167.32,20.9179]
[1730509842816,23.776884,167.36,167.32,5.49948649]
[1730509843818,70.0,167.37,167.33,5.49948649]
[1730509845114,70.0,167.37,167.34,20.9154]
[1730509846035,70.0,167.37,167.34,5.49948649]
[1730509846235,70.0,167.37,167.33,5.49948649]
[1730509848538,70.0,167.37,167.34,5.9758]
[1730509849121,70.0,167.37,167.34,20.9154]
[1730509855925,23.776884,167.39,167.35,5.49948649]
[1730509856236,23.776884,167.39,167.36,5.49948649]
[1730509857643,70.0,167.38,167.36,5.975]
[1730509861236,23.776884,167.39,167.36,5.975]
[1730509861537,23.776884,167.39,167.36,5.49948649]
[1730509862840,70.0,167.38,167.35,11.47458649]
[1730509863022,23.776884,167.39,167.35,11.47458649]
[1730509864052,70.0,167.38,167.35,11.47458649]
[1730509872233,29.750884,167.39,167.36,5.49948649]
[1730509872842,91.88148649,167.42,167.37,5.49948649]
[1730509873032,23.776884,167.41,167.37,5.49948649]
[1730509873350,97.85458649,167.42,167.37,5.49948649]
[1730509873534,70.0,167.42,167.38,5.49948649]